bitfinex-derivatives/quotes_BTCF0:USTF0_20251217
["timestamp","ask_amount","ask_price","bid_price","bid_amount"]
[1765989123975,0.3608,86298.0,86264.0,0.3608]
[1765989124176,0.3608,86298.0,86271.0,0.3608]
[1765989124177,0.19413,86279.0,86271.0,0.3608]
[1765989124576,0.19413,86279.0,86263.0,0.3608]
[1765989125086,0.19413,86279.0,86255.0,0.3608]
[1765989125087,0.3608,86271.0,86262.0,0.00017385]
[1765989125685,0.3608,86271.0,86247.0,0.3608]
[1765989125686,0.3608,86263.0,86247.0,0.3608]
[1765989126378,0.3608,86263.0,86250.0,0.22912527]
[1765989126687,0.00017385,86280.0,86264.0,0.002]
[1765989126984,0.00017385,86280.0,86256.0,0.3608]
[1765989126985,0.3608,86279.0,86265.0,0.3608]
[1765989127185,0.22929912,86280.0,86272.0,0.3608]
[1765989127186,0.00017385,86280.0,86272.0,0.3608]
[1765989127486,0.3608,86289.0,86279.0,0.3608]
[1765989127683,0.3608,86289.0,86257.0,0.0115968]
[1765989127684,0.3608,86280.0,86257.0,0.0115968]
[1765989127891,0.58992527,86280.0,86261.0,0.3608]
[1765989128079,0.3608,86265.0,86252.0,0.3608]
[1765989128281,0.3608,86265.0,86252.0,0.19413]
[1765989128683,0.3608,86265.0,86250.0,0.00017385]
[1765989128684,0.3608,86253.0,86250.0,5e-08]
[1765989128888,0.3608,86253.0,86233.0,0.3608]
[1765989129089,0.3608,86244.0,86233.0,0.3608]
[1765989129384,0.3608,86236.0,86217.0,0.3608]
[1765989129786,0.3608,86227.0,86209.0,0.3608]
[1765989129985,9.597e-05,86226.0,86209.0,0.36097396]
[1765989130191,9.597e-05,86226.0,86219.0,0.3608]
[1765989130587,0.02872403,86243.0,86230.0,0.0116004]
[1765989130783,1.45012,86271.0,86211.0,0.0116031]
[1765989130784,0.0115968,86259.0,86242.0,0.3608]
[1765989130984,0.3608,86243.0,86219.0,0.3608]
[1765989131195,0.01028102,86251.0,86217.0,0.001]
[1765989131380,0.0115972,86256.0,86244.0,0.19413]
[1765989131581,0.02188628,86256.0,86244.0,0.19413]
[1765989132487,0.3608,86245.0,86223.0,0.3724015]
[1765989132687,0.3608,86245.0,86233.0,0.3608]
[1765989133095,0.3608,86257.0,86244.0,0.3608]
[1765989133385,0.3608,86267.0,86244.0,0.3608]
[1765989133386,0.00017396,86259.0,86244.0,0.3733986]
[1765989133594,0.00017396,86259.0,86254.0,0.3608]
[1765989133795,3.96e-06,86259.0,86258.0,0.3608]
[1765989134180,3.96e-06,86259.0,86258.0,0.7216]
[1765989135279,3.96e-06,86259.0,86242.0,0.36097396]
[1765989135486,0.3608,86252.0,86242.0,0.36097396]
[1765989135692,0.36080396,86259.0,86249.0,0.3608]
[1765989137086,0.3608,86271.0,86257.0,0.3608]
[1765989137598,0.33660097,86300.0,86273.0,0.0115947]
[1765989137892,0.3608,86316.0,86294.0,0.3608]
[1765989138095,0.3608,86304.0,86294.0,0.3608]
[1765989138292,0.3608,86304.0,86281.0,0.3608]
[1765989138293,0.3608,86295.0,86281.0,0.3608]
[1765989138490,0.3608,86295.0,86281.0,0.3723936]
[1765989138790,0.3608,86295.0,86281.0,0.3608]
[1765989139096,0.3608,86295.0,86270.0,0.3608]
[1765989139097,0.3608,86295.0,86280.0,0.3608]
[1765989139390,0.42913571,86310.0,86270.0,0.69740097]
[1765989139391,0.00017386,86296.0,86286.0,0.3608]
[1765989139595,0.00017386,86296.0,86293.0,0.3608]
[1765989139981,0.3608,86307.0,86297.0,0.0115914]
[1765989140183,0.33660097,86320.0,86304.0,0.3608]
[1765989140388,0.0115858,86340.0,86304.0,0.3608]
[1765989140389,1.45028,86357.0,86304.0,0.3608]
[1765989140586,1.45028,86357.0,86300.0,0.33660097]
[1765989140587,0.0115878,86325.0,86308.0,0.3608]
[1765989140791,0.3608,86315.0,86300.0,0.3608]
[1765989140986,0.3608,86308.0,86299.0,0.00017386]
[1765989141194,0.3608,86308.0,86300.0,4e-05]
[1765989141688,0.3608,86315.0,86300.0,4e-05]
[1765989141888,0.0115893,86314.0,86300.0,4e-05]
[1765989142494,0.0115893,86314.0,86304.0,0.001]
[1765989142700,0.3608,86315.0,86300.0,4e-05]
[1765989143197,0.33660097,86310.0,86299.0,6e-08]
[1765989143384,0.0115909,86303.0,86289.0,0.3608]
[1765989143586,0.3608,86297.0,86289.0,0.3608]
[1765989143992,0.3608,86305.0,86289.0,0.3608]
[1765989144197,0.3608,86314.0,86301.0,0.3608]
[1765989144895,0.0115899,86310.0,86301.0,0.3608]
[1765989145201,0.3608,86302.0,86283.0,0.0115934]
[1765989145391,0.3608,86302.0,86290.0,0.3608]
[1765989145896,0.0115915,86298.0,86282.0,0.3608]
[1765989146199,0.0115915,86298.0,86272.0,0.3608]
[1765989146200,0.3608,86286.0,86281.0,6e-08]
[1765989146390,0.3608,86285.0,86281.0,6e-08]
[1765989147000,0.00017386,86299.0,86281.0,6e-08]
[1765989147001,6e-08,86299.0,86284.0,0.3608]
[1765989147294,6e-08,86299.0,86281.0,6e-08]
[1765989147295,0.3608,86340.0,86319.0,0.0115886]
[1765989147499,0.0227875,86341.0,86315.0,0.011589]
[1765989147696,0.33607739,86350.0,86315.0,0.011589]
[1765989147697,0.3608,86344.0,86331.0,0.3608]
[1765989148000,0.05839928,86385.0,86331.0,0.01122213]
[1765989148205,0.33607739,86380.0,86346.0,0.00017375]
[1765989148391,0.0115777,86401.0,86346.0,0.00017375]
[1765989148392,5e-08,86363.0,86362.0,0.0115828]
[1765989148694,1.50482323,86402.0,86367.0,0.0115821]
[1765989148695,7e-08,86378.0,86367.0,0.0115821]
[1765989148894,7e-08,86378.0,86351.0,0.06748]
[1765989149104,7e-08,86378.0,86352.0,0.011584]
[1765989149298,7e-08,86378.0,86356.0,0.0115836]
[1765989149700,7e-08,86378.0,86358.0,0.00017375]
[1765989149701,0.00017375,86376.0,86358.0,0.00017375]
[1765989149892,0.00017375,86376.0,86367.0,0.001]
[1765989150093,0.00017375,86376.0,86358.0,0.00017375]
[1765989150599,0.00017375,86376.0,86358.0,5e-08]
[1765989150600,0.3608,86360.0,86358.0,5e-08]
[1765989150902,0.3608,86360.0,86356.0,0.001]
[1765989150903,0.3608,86371.0,86356.0,5e-08]
[1765989151104,0.3608,86372.0,86356.0,5e-08]
[1765989151289,0.0115826,86364.0,86356.0,5e-08]
[1765989151492,0.3608,86365.0,86356.0,5e-08]
[1765989151493,0.3608,86371.0,86356.0,5e-08]
[1765989151695,0.3608,86371.0,86362.0,0.3608]
[1765989152402,0.3608,86371.0,86356.0,5e-08]
[1765989152601,0.3608,86359.0,86355.0,0.00017375]
[1765989152798,0.3608,86359.0,86341.0,0.3608]
[1765989153104,0.3608,86342.0,86329.0,0.3608]
[1765989153302,0.3608,86342.0,86318.0,0.3608]
[1765989153504,0.011584,86353.0,86339.0,0.3608]
[1765989153697,0.3608,86354.0,86339.0,0.3608]
[1765989153900,0.00017375,86355.0,86341.0,0.002]
[1765989154308,0.0115853,86344.0,86332.0,0.3608]
[1765989154502,0.3608,86337.0,86321.0,0.3608]
[1765989155892,3.75e-06,86338.0,86331.0,0.3608]
[1765989156699,3.75e-06,86338.0,86321.0,0.002]
[1765989156700,0.3608,86332.0,86321.0,0.002]
[1765989157005,0.3608,86323.0,86321.0,0.002]
[1765989157194,0.3608,86323.0,86321.0,0.003]
[1765989157605,0.3608,86323.0,86318.0,0.00017213]
[1765989158194,0.3608,86323.0,86318.0,3e-08]
[1765989158394,0.3723882,86322.0,86318.0,3e-08]
[1765989158605,0.3608,86336.0,86322.0,0.0115881]
[1765989158803,0.3608,86336.0,86318.0,3e-08]
[1765989158804,3.75e-06,86338.0,86325.0,0.0115877]
[1765989159001,3.75e-06,86338.0,86324.0,0.3608]
[1765989159309,0.45557797,86359.0,86335.0,0.3608]
[1765989159310,0.3608,86359.0,86335.0,0.3608]
[1765989159609,0.3608,86359.0,86318.0,0.01158863]
[1765989159610,0.3608,86359.0,86351.0,0.3608]
[1765989159811,0.0115839,86354.0,86337.0,0.3608]
[1765989160005,0.3608,86343.0,86330.0,0.3608]
[1765989160303,0.3608,86334.0,86319.0,0.3608]
[1765989161098,0.00017375,86345.0,86333.0,0.3608]
[1765989161402,0.3608,86342.0,86326.0,0.3608]
[1765989161707,0.00017375,86345.0,86341.0,0.3608]
[1765989161708,3.75e-06,86345.0,86341.0,0.3608]
[1765989161909,3.75e-06,86345.0,86342.0,0.0115855]
[1765989162209,0.004,86359.0,86345.0,0.011585]
[1765989162401,0.0115823,86366.0,86356.0,0.3608]
[1765989162601,0.3608,86369.0,86356.0,0.3608]
[1765989163002,0.3608,86369.0,86357.0,0.0115835]
[1765989163306,0.3608,86369.0,86356.0,0.3608]
[1765989163503,0.3608,86369.0,86354.0,0.00017375]
[1765989163708,0.0115821,86368.0,86354.0,0.00017375]
[1765989164007,0.3608,86369.0,86354.0,5e-08]
[1765989164008,0.0115832,86360.0,86354.0,5e-08]
[1765989164211,0.3608,86369.0,86354.0,5e-08]
[1765989164511,0.0115835,86357.0,86354.0,5e-08]
[1765989164806,0.3608,86357.0,86354.0,5e-08]
[1765989165001,0.0115836,86357.0,86354.0,5e-08]
[1765989165310,0.0115836,86357.0,86341.0,0.19413005]
[1765989165311,0.3608,86357.0,86341.0,0.19413005]
[1765989165501,0.3608,86342.0,86331.0,0.011587]
[1765989165701,0.3608,86342.0,86324.0,0.3608]
[1765989165903,0.19413,86335.0,86326.0,0.0115876]
[1765989166102,0.3608,86342.0,86332.0,0.3608]
[1765989166300,0.0115856,86341.0,86332.0,0.3608]
[1765989166509,0.3608,86342.0,86332.0,0.3608]
[1765989167109,0.3608,86342.0,86325.0,0.3608]
[1765989167110,0.011586,86339.0,86325.0,0.3608]
[1765989167308,0.0115868,86333.0,86325.0,0.3608]
[1765989167610,0.00017375,86346.0,86316.0,0.38997191]
[1765989167611,0.09130446,86346.0,86326.0,0.0115876]
[1765989167816,0.3608,86339.0,86323.0,0.3608]
[1765989168001,0.3723859,86339.0,86331.0,0.001]
[1765989168316,0.3608,86339.0,86323.0,0.3608]
[1765989168625,0.0115879,86325.0,86301.0,0.0115909]
[1765989168808,0.3608,86313.0,86300.0,4e-05]
[1765989169007,0.3608,86311.0,86300.0,4e-05]
[1765989169212,0.0115892,86315.0,86300.0,4e-05]
[1765989169518,0.0115892,86315.0,86277.0,0.011269]
[1765989169519,0.3608,86311.0,86298.0,0.3608]
[1765989169812,0.00017375,86322.0,86288.0,0.0115927]
[1765989169813,0.0115893,86314.0,86288.0,0.0115927]
[1765989170002,0.0115896,86312.0,86300.0,0.002]
[1765989170205,0.01159,86309.0,86281.0,0.04101465]
[1765989170406,0.0111996,86315.0,86281.0,0.02942105]
[1765989170607,0.3608,86316.0,86292.0,0.3608]
[1765989170807,0.00017375,86322.0,86312.0,0.3608]
[1765989171007,0.3723858,86341.0,86312.0,0.3608]
[1765989171008,0.3608,86352.0,86321.0,0.3608]
[1765989171315,0.3608,86352.0,86295.0,0.02848235]
[1765989171316,0.0115873,86329.0,86295.0,0.02848235]
[1765989171506,0.0115883,86321.0,86296.0,0.0115916]
[1765989171817,0.0115876,86327.0,86299.0,0.0115912]
[1765989172018,0.0115888,86318.0,86306.0,0.3608]
[1765989172310,0.00017375,86322.0,86302.0,5e-08]
[1765989172311,0.0115894,86314.0,86302.0,5e-08]
[1765989172616,0.00017375,86322.0,86295.0,0.36090868]
[1765989172617,0.7216,86305.0,86295.0,0.00010868]
[1765989172811,0.3723905,86305.0,86295.0,0.00010868]
[1765989173012,0.3608,86297.0,86295.0,0.00010868]
[1765989173216,0.3608,86305.0,86295.0,0.00010868]
[1765989173416,0.3608,86297.0,86295.0,0.00010868]
[1765989173610,0.00017375,86309.0,86296.0,0.0115916]
[1765989173817,3.75e-06,86309.0,86300.0,0.3608]
[1765989174016,0.19413375,86313.0,86300.0,0.3608]
[1765989174313,0.3608,86321.0,86310.0,0.3608]
[1765989174517,0.3608,86311.0,86295.0,0.00010868]
[1765989174906,0.3608,86311.0,86296.0,0.0115917]
[1765989175219,0.00017375,86312.0,86295.0,0.00028243]
[1765989175814,0.01159,86309.0,86295.0,0.00028243]
[1765989176020,0.3608,86304.0,86295.0,0.00028243]
[1765989176318,0.0115912,86300.0,86295.0,3e-08]
[1765989176519,0.3608,86304.0,86295.0,3e-08]
[1765989177318,0.00217375,86312.0,86303.0,0.3608]
[1765989177521,0.00010868,86311.0,86303.0,0.3608]
[1765989177919,0.01169848,86311.0,86303.0,0.3608]
[1765989178116,0.3608,86304.0,86295.0,3e-08]
[1765989178415,0.3628,86304.0,86295.0,3e-08]
[1765989178617,0.36090868,86311.0,86295.0,3e-08]
[1765989178922,0.36390868,86311.0,86295.0,3e-08]
[1765989179215,0.00310868,86311.0,86302.0,0.3608]
[1765989179521,0.00010868,86311.0,86302.0,0.3608]
[1765989180505,0.3608,86303.0,86295.0,3e-08]
[1765989180710,0.3723917,86296.0,86295.0,3e-08]
[1765989180907,0.3608,86303.0,86295.0,3e-08]
[1765989181113,0.00017375,86312.0,86296.0,0.3608]
[1765989181521,0.001,86311.0,86303.0,0.3608]
[1765989181720,0.0115917,86296.0,86295.0,3e-08]
[1765989182023,0.3608,86300.0,86284.0,0.3608]
[1765989182318,0.3608,86300.0,86268.0,0.02945481]
[1765989182319,0.001,86303.0,86268.0,0.02945481]
[1765989182517,0.3608,86289.0,86274.0,0.3608]
[1765989182723,0.3608,86289.0,86240.0,0.54900071]
[1765989182724,0.3608,86275.0,86251.0,0.3608]
[1765989182920,0.3608,86264.0,86249.0,0.0115979]
[1765989183219,0.3608,86274.0,86261.0,0.3608]
[1765989183606,0.0115948,86273.0,86261.0,0.3608]
[1765989183812,0.0115953,86269.0,86261.0,0.3608]
[1765989184013,0.01166196,86276.0,86261.0,0.3608]
[1765989184215,0.3608,86296.0,86272.0,0.3608]
[1765989184408,0.20516,86315.0,86270.0,0.011595]
[1765989184409,0.0115921,86294.0,86270.0,0.011595]
[1765989184609,0.00857214,86309.0,86283.0,0.3608]
[1765989184814,0.3608,86296.0,86284.0,0.3608]
[1765989185024,0.3723903,86306.0,86285.0,0.0115931]
[1765989185217,0.0115908,86303.0,86287.0,0.00017385]
[1765989185415,0.3608,86295.0,86275.0,0.3608]
[1765989185613,0.00017385,86304.0,86285.0,0.19413]
[1765989185812,0.3608,86299.0,86286.0,0.3608]
[1765989186220,0.3608,86299.0,86290.0,0.0115925]
[1765989186434,5e-08,86304.0,86298.0,0.3608]
[1765989186610,5e-08,86304.0,86298.0,0.7216]
[1765989186925,5e-08,86304.0,86286.0,0.00017385]
[1765989186926,5e-08,86304.0,86302.0,0.0115908]
[1765989187113,0.00231649,86338.0,86303.0,0.3608]
[1765989187424,0.00231649,86338.0,86331.0,0.3608]
[1765989187826,0.3608,86348.0,86331.0,0.3608]
[1765989188031,0.37201855,86348.0,86331.0,0.36097374]
[1765989188216,0.0115852,86345.0,86333.0,0.3608]
[1765989188522,0.011587,86332.0,86320.0,0.3608]
[1765989188724,0.3608,86326.0,86309.0,0.3608]
[1765989188921,0.3608,86326.0,86318.0,0.3608]
[1765989189227,0.3608,86335.0,86318.0,0.3608]
[1765989189426,0.3608,86320.0,86305.0,0.0115905]
[1765989189615,0.0115854,86343.0,86320.0,0.0115883]
[1765989189823,0.3608,86345.0,86331.0,0.19413]
[1765989190122,0.0115853,86344.0,86327.0,0.3608]
[1765989190517,0.3608,86337.0,86327.0,0.3608]
[1765989190723,0.3608,86328.0,86302.0,0.3608]
[1765989190919,0.3608,86328.0,86300.0,4e-05]
[1765989190920,0.3608,86312.0,86300.0,4e-05]
[1765989191139,0.3608,86316.0,86300.0,0.36084]
[1765989191522,0.3608,86324.0,86315.0,0.3608]
[1765989192027,0.00017374,86328.0,86323.0,0.3608]
[1765989192417,0.22905897,86350.0,86330.0,0.0115871]
[1765989192726,0.3608,86356.0,86330.0,0.0115871]
[1765989192727,0.3608,86356.0,86341.0,0.3608]
[1765989193119,0.3608,86356.0,86342.0,0.0115855]
[1765989193418,4e-08,86358.0,86351.0,0.3723842]
[1765989193613,0.09406275,86368.0,86351.0,0.3723842]
[1765989193614,0.09406275,86368.0,86356.0,0.0115835]
[1765989193829,7e-08,86378.0,86367.0,0.3608]
[1765989194014,7e-08,86378.0,86360.0,0.3608]
[1765989194015,7e-08,86378.0,86355.0,0.3608]
[1765989194216,0.002,86328.0,86325.0,0.3608]
[1765989194415,0.24064087,86370.0,86329.0,0.0115871]
[1765989194416,0.3608,86336.0,86329.0,0.0115871]
[1765989194624,0.3608,86355.0,86335.0,0.3608]
[1765989194830,0.011585,86347.0,86335.0,0.3608]
[1765989195018,0.3608,86336.0,86323.0,0.00011367]
[1765989195215,0.3608,86326.0,86323.0,0.00011367]
[1765989195419,0.3608,86326.0,86323.0,3.67e-06]
[1765989195621,0.00017374,86333.0,86324.0,0.0115879]
[1765989195821,0.3608,86347.0,86330.0,0.3608]
[1765989196121,0.3608,86355.0,86338.0,0.3608]
[1765989196315,0.42968,86372.0,86347.0,0.3608]
[1765989196316,0.3608,86362.0,86347.0,0.3608]
[1765989196527,0.0115834,86358.0,86347.0,0.3608]
[1765989196728,0.0115838,86355.0,86347.0,0.3608]
[1765989196927,0.3608,86358.0,86347.0,0.3608]
[1765989197123,0.3608,86358.0,86344.0,0.00017374]
[1765989197431,0.3608,86351.0,86344.0,0.00017374]
[1765989197630,0.3608,86351.0,86334.0,0.3608]
[1765989197825,0.3608,86342.0,86325.0,0.3608]
[1765989198332,0.22905897,86340.0,86325.0,0.3608]
[1765989198522,0.3608,86342.0,86329.0,0.0115872]
[1765989198718,0.3608,86351.0,86329.0,0.0115872]
[1765989198719,0.3608,86351.0,86333.0,0.3608]
[1765989198919,0.3608,86351.0,86325.0,0.3608]
[1765989198920,0.3608,86337.0,86325.0,0.3608]
[1765989199127,0.3608,86328.0,86324.0,0.00017374]
[1765989199328,0.3608,86328.0,86324.0,3.74e-06]
[1765989199926,0.3608,86328.0,86323.0,3.67e-06]
[1765989200527,0.19413,86328.0,86323.0,3.67e-06]
[1765989200728,0.3608,86337.0,86323.0,3.67e-06]
[1765989200931,4e-08,86334.0,86331.0,0.0115868]
[1765989201133,0.3608,86347.0,86328.0,0.3608]
[1765989201433,0.09332821,86362.0,86344.0,0.3608]
[1765989201624,0.3608,86363.0,86344.0,0.3608]
[1765989201927,0.3608,86355.0,86344.0,0.3608]
[1765989202127,0.02257461,86376.0,86344.0,0.3608]
[1765989202128,0.00017374,86358.0,86344.0,0.3608]
[1765989202523,0.00017374,86358.0,86345.0,0.011585]
[1765989202718,0.00017374,86358.0,86344.0,0.3608]
[1765989202719,4e-08,86358.0,86351.0,0.3608]
[1765989202929,4e-08,86358.0,86352.0,0.0115842]
[1765989203136,4e-08,86358.0,86351.0,0.3608]
[1765989203537,4e-08,86358.0,86355.0,0.0115837]
[1765989203732,0.3608,86386.0,86375.0,0.0115811]
[1765989203932,0.3608,86386.0,86374.0,0.3608]
[1765989204230,0.3608,86386.0,86327.0,0.04141078]
[1765989204231,0.3608,86376.0,86349.0,0.3608]
[1765989204438,0.3608,86352.0,86347.0,0.0115848]
[1765989204635,0.3608,86352.0,86337.0,0.38903803]
[1765989204636,0.3608,86352.0,86341.0,0.00017374]
[1765989204934,0.00117374,86358.0,86344.0,0.3608]
[1765989205121,4e-08,86358.0,86353.0,0.011584]
[1765989205325,4e-08,86358.0,86352.0,0.3608]
[1765989205835,4e-08,86358.0,86356.0,0.0115835]
[1765989206132,0.3608,86386.0,86357.0,0.4]
[1765989206327,0.10255938,86423.0,86389.0,0.0115792]
[1765989206521,0.22905897,86420.0,86394.0,0.0115785]
[1765989206721,0.3608,86417.0,86398.0,0.3608]
[1765989206929,0.011577,86406.0,86398.0,0.3608]
[1765989207128,0.3608,86399.0,86387.0,0.3608]
[1765989207438,0.0115785,86394.0,86393.0,4e-08]
[1765989207628,0.0115794,86388.0,86371.0,0.3608]
[1765989207931,0.3608,86383.0,86364.0,0.3608]
[1765989208119,0.0115806,86379.0,86364.0,0.3608]
[1765989208325,0.3608,86383.0,86364.0,0.3608]
[1765989208326,0.3608,86376.0,86364.0,0.3608]
[1765989208531,0.3608,86383.0,86364.0,0.3608]
[1765989208731,0.00017364,86382.0,86372.0,0.3608]
[1765989209231,0.3608,86409.0,86381.0,0.3608]
[1765989209422,0.3608,86409.0,86396.0,0.0115783]
[1765989209625,0.3608,86409.0,86399.0,0.3608]
[1765989209837,0.3608,86409.0,86392.0,0.3608]
[1765989210041,0.3608,86400.0,86380.0,0.3608]
[1765989210223,0.00011163,86399.0,86382.0,0.0115801]
[1765989210429,0.00011163,86399.0,86381.0,0.00017364]
[1765989210430,0.00011163,86399.0,86381.0,0.01175394]
[1765989210733,0.00011163,86399.0,86386.0,0.0115796]
[1765989210934,0.3608,86409.0,86398.0,0.3608]
[1765989211132,0.3723756,86417.0,86398.0,0.3608]
[1765989211335,0.3608,86417.0,86398.0,0.3608]
[1765989211524,0.3608,86408.0,86388.0,0.3723793]
[1765989211723,0.3608,86417.0,86388.0,0.3723793]
[1765989211724,0.3608,86417.0,86398.0,0.3608]
[1765989211929,0.0115709,86451.0,86398.0,0.3608]
[1765989211930,0.3608,86428.0,86410.0,0.3608]
[1765989212237,0.3608,86413.0,86399.0,0.00017364]
[1765989213027,0.3608,86421.0,86399.0,0.00017364]
[1765989213229,0.3608,86435.0,86417.0,0.3608]
[1765989213430,0.0115755,86417.0,86406.0,0.3608]
[1765989213625,0.45718615,86430.0,86398.0,0.003]
[1765989213829,0.3608,86413.0,86402.0,0.0115773]
[1765989214028,0.3608,86424.0,86400.0,0.3608]
[1765989214230,0.3608,86424.0,86398.0,0.001]
[1765989214231,0.45718615,86430.0,86398.0,0.001]
[1765989214446,0.3608,86413.0,86405.0,0.00017354]
[1765989214640,0.00017319,86423.0,86407.0,0.3608]
[1765989214845,0.00017319,86423.0,86415.0,0.3608]
[1765989215646,9e-08,86423.0,86422.0,0.3608]
[1765989215843,0.00100009,86423.0,86422.0,0.3608]
[1765989216042,0.3608,86440.0,86424.0,0.0115744]
[1765989216239,0.3723725,86440.0,86422.0,0.3608]
[1765989216442,0.3608,86423.0,86407.0,0.0115768]
[1765989216739,0.3608,86445.0,86422.0,0.3608]
[1765989216941,0.42764,86450.0,86432.0,0.3608]
[1765989217142,0.3608,86453.0,86440.0,0.3608]
[1765989217342,0.01336315,86458.0,86448.0,0.0115713]
[1765989217543,0.01336315,86458.0,86447.0,0.3608]
[1765989217744,0.00231328,86458.0,86447.0,0.3608]
[1765989218137,0.0115689,86466.0,86447.0,0.3608]
[1765989218338,0.0115683,86471.0,86457.0,0.3608]
[1765989218543,0.01133056,86474.0,86464.0,0.3608]
[1765989218741,0.09102104,86494.0,86473.0,0.3608]
[1765989218948,0.0115639,86503.0,86487.0,0.3608]
[1765989219245,0.3608,86497.0,86487.0,0.3608]
[1765989219447,0.24812,86526.0,86487.0,0.3608]
[1765989219448,0.0115623,86516.0,86494.0,0.3608]
[1765989219654,0.3608,86519.0,86505.0,0.19413]
[1765989220042,1e-07,86522.0,86516.0,0.0115622]
[1765989220240,0.0115571,86555.0,86518.0,0.0115618]
[1765989220446,0.01153824,86565.0,86519.0,0.0115617]
[1765989220750,0.0115562,86561.0,86528.0,0.00017343]
[1765989220940,0.005,86564.0,86539.0,0.011559]
[1765989221156,0.005,86564.0,86530.0,0.45690872]
[1765989221347,0.0115565,86559.0,86528.0,0.00017343]
[1765989221551,0.005,86564.0,86528.0,0.00017343]
[1765989221552,0.0115582,86547.0,86528.0,0.00017343]
[1765989222145,0.005,86564.0,86528.0,0.00017343]
[1765989222353,0.0115602,86531.0,86528.0,3e-08]
[1765989222652,0.0115615,86522.0,86519.0,3e-08]
[1765989222956,0.0577825,86559.0,86500.0,0.005]
[1765989222957,0.11636,86557.0,86500.0,0.005]
[1765989223445,0.11636,86557.0,86501.0,0.0115641]
[1765989223446,0.00017271,86537.0,86501.0,0.0115641]
[1765989223645,0.00017271,86537.0,86500.0,0.005]
[1765989223848,0.0115605,86530.0,86500.0,0.005]
[1765989224151,0.00017271,86537.0,86502.0,0.011564]
[1765989224350,0.00017271,86537.0,86500.0,0.46190872]
[1765989224544,0.00017271,86537.0,86511.0,0.0115628]
[1765989224743,0.00017271,86537.0,86515.0,0.0115622]
[1765989224937,0.00017271,86537.0,86510.0,0.00017332]
[1765989225148,0.01173221,86537.0,86510.0,0.00017332]
[1765989225347,0.00017271,86537.0,86510.0,0.00017332]
[1765989225938,0.00017271,86537.0,86532.0,0.01156]
[1765989225939,1e-08,86537.0,86532.0,0.01156]
[1765989226143,1e-08,86537.0,86530.0,0.0115603]
[1765989226347,1e-08,86537.0,86510.0,0.02900634]
[1765989226546,1e-08,86537.0,86514.0,0.0115624]
[1765989226851,1e-08,86537.0,86510.0,0.02900634]
[1765989227151,1e-08,86537.0,86534.0,0.0115597]
[1765989227339,1e-08,86564.0,86555.0,0.0115569]
[1765989227650,1e-08,86564.0,86542.0,0.005]
[1765989228152,0.011556,86563.0,86550.0,0.2277089]
[1765989228357,0.011557,86555.0,86548.0,2e-08]
[1765989228661,1e-08,86564.0,86542.0,2e-08]
[1765989228662,0.0115573,86553.0,86542.0,2e-08]
[1765989228844,0.0115567,86558.0,86542.0,2e-08]
[1765989229043,0.00500001,86564.0,86542.0,2e-08]
[1765989229044,0.011556,86563.0,86542.0,0.00100002]
[1765989229244,0.00500001,86564.0,86542.0,0.00100002]
[1765989229546,0.3608,86556.0,86542.0,0.00100002]
[1765989229745,0.00500001,86564.0,86550.0,0.3608]
[1765989229944,0.00500001,86564.0,86557.0,0.3608]
[1765989230148,0.00500001,86564.0,86548.0,0.3608]
[1765989230458,0.3608,86561.0,86548.0,0.3608]
[1765989230644,0.00500001,86564.0,86557.0,0.3608]
[1765989230949,0.00500001,86564.0,86556.0,0.3608]
[1765989231148,0.3608,86557.0,86544.0,0.00017332]
[1765989231353,0.3608,86547.0,86544.0,0.00017332]
[1765989231651,0.00500001,86564.0,86546.0,0.3608]
[1765989231847,0.00500001,86564.0,86544.0,0.36097332]
[1765989231848,0.3608,86558.0,86544.0,0.36097332]
[1765989232050,0.3608,86558.0,86530.0,0.2277089]
[1765989232051,0.3608,86547.0,86530.0,0.2277089]
[1765989232251,0.3608,86547.0,86528.0,0.38978773]
[1765989232445,0.7216,86547.0,86530.0,0.2277089]
[1765989232644,0.3608,86547.0,86530.0,0.2277089]
[1765989232843,0.3608,86547.0,86535.0,0.3608]
[1765989233143,0.3608,86547.0,86537.0,0.2277089]
[1765989233447,0.3608,86547.0,86536.0,0.00017332]
[1765989233654,0.3608,86547.0,86539.0,0.011559]
[1765989233854,0.3608,86560.0,86542.0,0.37235872]
[1765989234052,0.3608,86560.0,86542.0,0.36080002]
[1765989234245,0.3608,86560.0,86544.0,0.3608]
[1765989234560,0.3608,86585.0,86559.0,0.3608]
[1765989234749,0.0115524,86590.0,86577.0,0.3608]
[1765989235058,0.0115523,86591.0,86577.0,0.3608]
[1765989235355,1.48017129,86605.0,86577.0,0.35886301]
[1765989235356,0.0115521,86592.0,86577.0,0.35886301]
[1765989235554,0.00017332,86586.0,86577.0,0.35886301]
[1765989235754,0.3608,86584.0,86572.0,0.3608]
[1765989236056,0.002,86578.0,86569.0,0.00017332]
[1765989236446,0.002,86578.0,86572.0,0.3608]
[1765989236849,0.00017332,86586.0,86572.0,0.3608]
[1765989237057,2e-08,86586.0,86582.0,0.0115534]
[1765989237255,0.3723501,86607.0,86582.0,0.0115534]
[1765989237256,0.3608,86607.0,86599.0,0.0115511]
[1765989237552,0.3608,86607.0,86574.0,0.0115544]
[1765989237553,0.3608,86627.0,86604.0,0.3608]
[1765989237758,0.37224785,86622.0,86595.0,0.3608]
[1765989237957,0.37224785,86622.0,86583.0,0.005]
[1765989237958,0.3608,86613.0,86600.0,0.3608]
[1765989238259,0.00017294,86615.0,86598.0,0.00017321]
[1765989238648,4e-08,86615.0,86598.0,0.00017321]
[1765989238849,0.005,86647.0,86605.0,0.45524917]
[1765989239055,0.01624077,86647.0,86605.0,0.45524917]
[1765989239249,0.45524917,86690.0,86625.0,0.005]
[1765989239450,0.45524917,86690.0,86626.0,0.00168]
[1765989239451,0.01154,86683.0,86626.0,0.00168]
[1765989239655,0.0115402,86681.0,86634.0,0.0115463]
[1765989239850,0.0115427,86662.0,86649.0,0.0001731]
[1765989240050,0.0115405,86679.0,86625.0,0.005]
[1765989240051,0.09065469,86667.0,86625.0,0.005]
[1765989240251,0.011544,86653.0,86625.0,0.0165475]